fUSD/lending_fUSD_20240804
["ID","MTS","AMOUNT","RATE_DAILY","PERIOD"]
[334132978,1722789148077,-1646.59,0.00023835,9]
[334132979,1722789148086,-949.11,0.00023835,9]
[334132980,1722789148095,-500.0,0.00023835,9]
[334132981,1722789148103,-2124.99,0.00023835,9]
[334132982,1722789148113,-1277.47,0.00023835,9]
[334132983,1722789148122,-2060.41,0.00023835,9]
[334132984,1722789148132,-5462.19,0.00023835,9]
[334132985,1722789148141,-1732.64,0.00023835,9]
[334132986,1722789148151,-1091.18,0.00023835,9]
[334132987,1722789148160,-500.0,0.00023835,9]
[334132988,1722789148169,-500.0,0.00023835,9]
[334132989,1722789148182,-544.49,0.00023835,9]
[334132990,1722789148191,-500.0,0.00023835,9]
[334132991,1722789148200,-500.0,0.00023835,9]
[334132992,1722789148219,-564.87,0.00023835,9]
[334132993,1722789148229,-15172.23,0.00023835,9]
[334132994,1722789148238,-4452.48,0.00023835,9]
[334132995,1722789148248,-851.31,0.00023835,9]
[334132996,1722789148258,-1441.44,0.00023835,9]
[334132997,1722789148268,-2716.36,0.00023835,9]
[334132998,1722789148277,-500.0,0.00023835,9]
[334132999,1722789148286,-584.6,0.00023835,9]
[334133000,1722789148295,-1571.23,0.00023835,9]
[334133001,1722789148304,-574.32,0.00023835,9]
[334133002,1722789148314,-500.0,0.00023835,9]
[334133003,1722789148323,-500.0,0.00023835,9]
[334133004,1722789148332,-703.47,0.00023835,9]
[334133005,1722789148341,-1021.22,0.00023835,9]
[334133006,1722789148351,-1535.24,0.00023835,9]
[334133007,1722789148360,-1291.6,0.00023835,9]
[334133008,1722789148370,-763.08,0.00023835,9]
[334133009,1722789148379,-5391.24,0.00023835,9]
[334133010,1722789148389,-1354.84,0.00023835,9]
[334133011,1722789148398,-584.33,0.00023835,9]
[334133012,1722789148407,-500.0,0.00023835,9]
[334133013,1722789148416,-709.22,0.00023835,9]
[334133014,1722789148425,-500.0,0.00023835,9]
[334133015,1722789148434,-2713.37,0.00023835,9]
[334133016,1722789148444,-2249.61,0.00023835,9]
[334133017,1722789148452,-995.02,0.00023835,9]
[334133018,1722789148473,-3893.64,0.00023835,9]
[334133019,1722789148484,-500.0,0.00023835,9]
[334133020,1722789148494,-500.0,0.00023835,9]
[334133021,1722789148503,-892.75,0.00023835,9]
[334133022,1722789148514,-605.15,0.00023835,9]
[334133023,1722789148523,-1131.9,0.00023835,9]
[334133024,1722789148533,-2837.07,0.00023835,9]
[334133025,1722789148541,-1059.61,0.00023835,9]
[334133026,1722789148551,-901.69,0.00023835,9]
[334133027,1722789148561,-873.69,0.00023835,9]
[334133028,1722789148570,-500.0,0.00023835,9]
[334133029,1722789148579,-1120.25,0.00023835,9]
[334133030,1722789148588,-1475.32,0.00023835,9]
[334133031,1722789148597,-500.0,0.00023835,9]
[334133032,1722789148607,-6849.94,0.00023835,9]
[334133033,1722789148808,-2285.11,0.00023835,9]
[334133034,1722789148818,-1520.63,0.00023835,9]
[334133035,1722789148827,-645.98,0.00023835,9]
[334133036,1722789148837,-1055.9,0.00023835,9]
[334133037,1722789148845,-500.0,0.00023835,9]
[334133038,1722789148855,-500.0,0.00023835,9]
[334133039,1722789148865,-4923.42,0.00023835,9]
[334133040,1722789148874,-1211.89,0.00023835,9]
[334133041,1722789148884,-1860.21,0.00023835,9]
[334133042,1722789148894,-500.0,0.00023835,9]
[334133043,1722789148904,-2498.66,0.00023835,9]
[334133044,1722789148914,-723.93,0.00023835,9]
[334133045,1722789148923,-2543.95,0.00023835,9]
[334133046,1722789148933,-781.57,0.00023835,9]
[334133047,1722789148943,-1395.06,0.00023835,9]
[334133048,1722789148952,-1321.62,0.00023835,9]
[334133049,1722789148972,-1624.5,0.00023835,9]
[334133050,1722789148981,-1415.76,0.00023835,9]
[334133051,1722789148990,-1413.44,0.00023835,9]
[334133052,1722789149000,-500.0,0.00023835,9]
[334133053,1722789149010,-500.0,0.00023835,9]
[334133054,1722789149020,-1456.38,0.00023835,9]
[334133055,1722789149029,-1356.63,0.00023835,9]
[334133056,1722789149039,-911.83,0.00023835,9]
[334133057,1722789149047,-500.0,0.00023835,9]
[334133058,1722789149057,-900.99,0.00023835,9]
[334133059,1722789149067,-1747.36,0.00023835,9]
[334133060,1722789149076,-2014.48,0.00023835,9]
[334133061,1722789149086,-2308.05,0.00023835,9]
[334133062,1722789149096,-500.0,0.00023835,9]
[334133063,1722789149106,-500.0,0.00023835,9]
[334133064,1722789149116,-2084.47,0.00023835,9]
[334133065,1722789149126,-3204.33,0.00023835,9]
[334133066,1722789149136,-500.0,0.00023835,9]
[334133067,1722789149146,-500.0,0.00023835,9]
[334133068,1722789149157,-782.31,0.00023835,9]
[334133069,1722789149167,-1114.5,0.00023835,9]
[334133070,1722789149178,-1467.0,0.00023835,9]
[334133071,1722789149193,-1170.79,0.00023835,9]
[334133072,1722789149203,-1027.92,0.00023835,9]
[334133073,1722789149227,-500.0,0.00023835,9]
[334133074,1722789149238,-584.12,0.00023835,9]
[334133075,1722789149249,-1503.19,0.00023835,9]
[334133076,1722789149259,-500.0,0.00023835,9]
[334133077,1722789149271,-500.0,0.00023835,9]
[334133078,1722789149282,-2370.59,0.00023835,9]
[334133079,1722789149292,-8526.84,0.00023835,9]
[334133080,1722789149302,-2115.13,0.00023835,9]
[334133081,1722789149312,-931.26,0.00023835,9]
[334133082,1722789149322,-167.08,0.00023835,9]
[334133083,1722789149332,-792.92,0.00023835,9]
[334133084,1722789149342,-500.0,0.00023835,9]
[334133085,1722789149351,-500.0,0.00023835,9]
[334133086,1722789149360,-500.0,0.00023835,9]
[334133087,1722789149370,-500.0,0.00023835,9]
[334133088,1722789149379,-500.0,0.00023835,9]
[334133089,1722789149389,-1212.39,0.00023835,9]
[334133090,1722789149399,-1614.2,0.00023835,9]
[334133091,1722789149409,-2872.78,0.00023835,9]
[334133092,1722789149419,-940.66,0.00023835,9]
[334133093,1722789149428,-500.0,0.00023835,9]
[334133094,1722789149438,-720.05,0.00023835,9]
[334133095,1722789149448,-500.0,0.00023835,9]
[334133096,1722789149460,-2278.54,0.00023835,9]
[334133097,1722789149479,-1140.48,0.00023835,9]
[334133098,1722789149492,-1064.77,0.00023835,9]
[334133099,1722789149503,-500.0,0.00023835,9]
[334133100,1722789149513,-500.0,0.00023835,9]
[334133101,1722789149523,-2298.73,0.00023835,9]
[334133102,1722789149533,-614.32,0.00023835,9]
[334133103,1722789149542,-952.32,0.00023835,9]
[334133104,1722789149552,-664.1,0.00023835,9]
[334133105,1722789149562,-1168.02,0.00023835,9]
[334133106,1722789149572,-1420.45,0.00023835,9]
[334133107,1722789149582,-735.18,0.00023835,9]
[334133108,1722789149592,-500.0,0.00023835,9]
[334133109,1722789149601,-500.0,0.00023835,9]
[334133110,1722789149611,-150.0,0.00023841,2]
[334133111,1722789149624,-150.0,0.00023863,2]
[334133112,1722789149633,-4187.34504777,0.0002388,3]
[334133113,1722789149642,-511768.20851894,0.0002388,2]
[334133114,1722789149653,-221055.40055581,0.0002388,2]
[334133115,1722789149663,-150.0,0.0002388,2]
[334133116,1722789149672,-150.0,0.00023889,2]
[334133117,1722789149682,-150.0,0.00023894,2]
[334133118,1722789149691,-6025.85,0.000239,7]
[334133119,1722789149701,-2337.51,0.00023917,2]
[334133120,1722789149721,-500.0,0.00023917,9]
[334133121,1722789149731,-500.0,0.00023917,9]
[334133122,1722789149740,-500.0,0.00023917,9]
[334133123,1722789149750,-648.45,0.00023917,9]
[334133124,1722789149759,-500.0,0.00023917,9]
[334133125,1722789149768,-500.0,0.00023917,9]
[334133126,1722789149778,-500.0,0.00023917,9]
[334133127,1722789149787,-502.62,0.00023917,9]
[334133128,1722789149797,-730.08,0.00023917,9]
[334133129,1722789149806,-500.0,0.00023917,9]
[334133130,1722789149815,-588.86,0.00023917,9]
[334133131,1722789149825,-500.0,0.00023917,9]
[334133132,1722789149835,-500.0,0.00023917,9]
[334133133,1722789149844,-500.0,0.00023917,9]
[334133134,1722789149853,-850.72,0.00023917,9]
[334133135,1722789149862,-760.21,0.00023917,9]
[334133136,1722789149871,-626.04,0.00023917,9]
[334133137,1722789149879,-500.0,0.00023917,9]
[334133138,1722789149889,-500.0,0.00023917,9]
[334133139,1722789149898,-561.46,0.00023917,9]
[334133140,1722789149908,-500.0,0.00023917,9]
[334133141,1722789149917,-500.0,0.00023917,9]
[334133142,1722789149926,-500.0,0.00023917,9]
[334133143,1722789149935,-500.0,0.00023917,9]
[334133144,1722789149945,-500.0,0.00023917,9]
[334133145,1722789149954,-550.62,0.00023917,9]
[334133146,1722789149976,-500.0,0.00023917,9]
[334133147,1722789149985,-500.0,0.00023917,9]
[334133148,1722789149995,-547.78709542,0.00023917,9]
[334133149,1722789150004,-500.0,0.00023917,9]
[334133150,1722789150012,-500.0,0.00023917,9]
[334133151,1722789150022,-500.0,0.00023917,9]
[334133152,1722789150031,-591.33,0.00023917,9]
[334133153,1722789150040,-1011.69,0.00023917,9]
[334133154,1722789150049,-511.64,0.00023917,9]
[334133155,1722789150058,-180.38525017,0.00023917,9]
[334133156,1722789150068,-500.0,0.00023917,9]
[334133157,1722789150077,-559.06,0.00023917,9]
[334133158,1722789150086,-702.5,0.00023917,9]
[334133159,1722789150095,-458.06130351,0.00023917,9]
[334133160,1722789150105,-500.0,0.00023917,9]
[334133161,1722789150114,-500.0,0.00023917,9]
[334133162,1722789150123,-646.51,0.00023917,9]
[334133163,1722789150133,-1314.76,0.00023917,9]
[334133164,1722789150142,-348.47194594,0.00023917,9]
[334133165,1722789150151,-500.0,0.00023917,9]
[334133166,1722789150161,-532.71,0.00023917,9]
[334133167,1722789150171,-500.0,0.00023917,9]
[334133168,1722789150185,-721.27,0.00023917,9]
[334133169,1722789150195,-500.0,0.00023917,9]
[334133170,1722789150205,-273.51766123,0.00023917,9]
[334133171,1722789150226,-500.0,0.00023917,9]
[334133172,1722789150236,-500.0,0.00023917,9]
[334133173,1722789150246,-495.64456024,0.00023917,9]
[334133174,1722789150255,-540.98,0.00023917,9]
[334133175,1722789150268,-538.98138019,0.00023917,9]
[334133176,1722789150278,-500.0,0.00023917,9]
[334133177,1722789150288,-521.65,0.00023917,9]
[334133178,1722789150311,-831.69,0.00023917,9]
[334133179,1722789150327,-500.0,0.00023917,9]
[334133180,1722789150347,-785.3,0.00023917,9]
[334133181,1722789150366,-780.18,0.00023917,9]
[334133182,1722789150385,-500.0,0.00023917,9]
[334133183,1722789150405,-500.0,0.00023917,9]
[334133184,1722789150421,-500.0,0.00023917,9]
[334133185,1722789150438,-500.0,0.00023917,9]
[334133186,1722789150458,-500.0,0.00023917,9]
[334133187,1722789150484,-500.0,0.00023917,9]
[334133188,1722789150501,-559.95,0.00023917,9]
[334133189,1722789150518,-500.0,0.00023917,9]
[334133190,1722789150537,-1164.15,0.00023917,9]
[334133191,1722789150553,-995.62,0.00023917,9]
[334133192,1722789150570,-500.0,0.00023917,9]
[334133193,1722789150586,-500.0,0.00023917,9]
[334133194,1722789150603,-500.0,0.00023917,9]
[334133195,1722789150620,-576.22,0.00023917,9]
[334133196,1722789150638,-543.19,0.00023917,9]
[334133197,1722789150656,-500.0,0.00023917,9]
[334133198,1722789150672,-500.0,0.00023917,9]
[334133199,1722789150689,-500.0,0.00023917,9]
[334133200,1722789150706,-500.0,0.00023917,9]
[334133201,1722789150732,-500.0,0.00023917,9]
[334133202,1722789150748,-599.57,0.00023917,2]
[334133203,1722789150763,-500.0,0.00023917,9]
[334133204,1722789150779,-500.0,0.00023917,9]
[334133205,1722789150795,-500.0,0.00023917,9]
[334133206,1722789150811,-500.0,0.00023917,9]
[334133207,1722789150827,-500.0,0.00023917,9]
[334133208,1722789150843,-550.63,0.00023917,7]
[334133209,1722789150857,-500.0,0.00023917,9]
[334133210,1722789150876,-603.97,0.00023917,9]
[334133211,1722789150893,-500.0,0.00023917,9]
[334133212,1722789150910,-579.69,0.00023917,9]
[334133213,1722789150929,-526.37,0.00023917,9]
[334133214,1722789150948,-519.43,0.00023917,9]
[334133215,1722789150972,-500.0,0.00023917,9]
[334133216,1722789150988,-500.0,0.00023917,9]
[334133217,1722789151005,-500.0,0.00023917,9]
[334133218,1722789151023,-589.73359663,0.00023917,9]
[334133219,1722789151039,-500.0,0.00023917,9]
[334133220,1722789151055,-513.52,0.00023917,9]
[334133221,1722789151073,-500.0,0.00023917,9]
[334133222,1722789151090,-500.0,0.00023917,9]
[334133223,1722789151107,-545.7,0.00023917,9]
[334133224,1722789151124,-500.0,0.00023917,9]
[334133225,1722789151139,-500.0,0.00023917,9]
[334133226,1722789151153,-500.0,0.00023917,9]
[334133227,1722789151168,-500.0,0.00023917,9]
[334133228,1722789151185,-500.0,0.00023917,9]
[334133229,1722789151203,-500.0,0.00023917,9]
[334133230,1722789151230,-500.0,0.00023917,9]
[334133231,1722789151246,-494.85,0.00023917,9]
[334133232,1722789151260,-500.0,0.00023917,9]
[334133233,1722789151275,-572.51,0.00023917,9]
[334133234,1722789151289,-500.0,0.00023917,9]
[334133235,1722789151303,-500.0,0.00023917,9]
[334133236,1722789151319,-500.0,0.00023917,9]
[334133237,1722789151335,-589.88,0.00023917,9]
[334133238,1722789151351,-500.0,0.00023917,9]
[334133239,1722789151367,-500.0,0.00023917,9]
[334133240,1722789151382,-500.0,0.00023917,9]
[334133241,1722789151396,-437.33,0.00023917,9]
[334133242,1722789151412,-500.0,0.00023917,9]
[334133243,1722789151426,-643.51,0.00023917,9]
[334133244,1722789151441,-500.0,0.00023917,9]
[334133245,1722789151457,-531.27,0.00023917,9]
[334133246,1722789151479,-500.0,0.00023917,9]
[334133247,1722789151494,-500.0,0.00023917,9]
[334133248,1722789151510,-672.45,0.00023917,9]
[334133249,1722789151525,-500.0,0.00023917,9]
[334133250,1722789151539,-500.0,0.00023917,9]
[334133251,1722789151554,-500.0,0.00023917,9]
[334133252,1722789151568,-500.0,0.00023917,9]
[334133253,1722789151582,-500.0,0.00023917,9]
[334133254,1722789151598,-500.0,0.00023917,9]
[334133255,1722789151614,-500.0,0.00023917,9]
[334133256,1722789151628,-500.0,0.00023917,9]
[334133257,1722789151643,-500.0,0.00023917,9]
[334133258,1722789151658,-500.0,0.00023917,9]
[334133259,1722789151672,-500.0,0.00023917,9]
[334133260,1722789151688,-500.0,0.00023917,9]
[334133261,1722789151702,-558.03,0.00023917,9]
[334133262,1722789151722,-500.0,0.00023917,9]
[334133263,1722789151738,-864.98,0.00023917,9]
[334133264,1722789151753,-510.16,0.00023917,9]
[334133265,1722789151767,-522.61,0.00023917,9]
[334133266,1722789151783,-1944.23,0.00023917,9]
[334133267,1722789151798,-500.0,0.00023917,9]
[334133268,1722789151814,-500.0,0.00023917,9]
[334133269,1722789151829,-500.0,0.00023917,9]
[334133270,1722789151843,-500.0,0.00023917,9]
[334133271,1722789151858,-176.62,0.00023917,9]
[334133272,1722789151874,-500.0,0.00023917,9]
[334133273,1722789151890,-642.65,0.00023917,9]
[334133274,1722789151904,-500.0,0.00023917,9]
[334133275,1722789151919,-500.0,0.00023917,9]
[334133276,1722789151934,-500.0,0.00023917,9]
[334133277,1722789151949,-500.0,0.00023917,9]
[334133278,1722789151971,-500.0,0.00023917,9]
[334133279,1722789151985,-546.11,0.00023917,9]
[334133280,1722789152001,-543.11,0.00023917,9]
[334133281,1722789152015,-500.0,0.00023917,9]
[334133282,1722789152029,-226.94,0.00023917,9]
[334133283,1722789152045,-544.54,0.00023917,9]
[334133284,1722789152060,-500.0,0.00023917,9]
[334133285,1722789152075,-500.0,0.00023917,9]
[334133286,1722789152091,-632.8404352,0.00023917,9]
[334133287,1722789152105,-500.0,0.00023917,9]
[334133288,1722789152120,-499.63,0.00023917,9]
[334133289,1722789152135,-500.0,0.00023917,9]
[334133290,1722789152150,-500.0,0.00023917,9]
[334133291,1722789152164,-606.8,0.00023917,9]
[334133292,1722789152179,-593.44,0.00023917,9]
[334133293,1722789152196,-500.0,0.00023917,9]
[334133294,1722789152216,-500.0,0.00023917,9]
[334133295,1722789152231,-607.33,0.00023917,9]
[334133296,1722789152245,-500.0,0.00023917,9]
[334133297,1722789152261,-500.0,0.00023917,9]
[334133298,1722789152275,-500.0,0.00023917,9]
[334133299,1722789152290,-500.0,0.00023917,9]
[334133300,1722789152306,-500.0,0.00023917,9]
[334133301,1722789152321,-500.0,0.00023917,9]
[334133302,1722789152335,-500.0,0.00023917,9]
[334133303,1722789152350,-500.0,0.00023917,9]
[334133304,1722789152364,-528.21,0.00023917,9]
[334133305,1722789152379,-500.0,0.00023917,9]
[334133306,1722789152392,-500.0,0.00023917,9]
[334133307,1722789152407,-569.32,0.00023917,9]
[334133308,1722789152420,-519.4503542,0.00023917,9]
[334133309,1722789152435,-500.0,0.00023917,9]
[334133310,1722789152455,-523.37,0.00023917,9]
[334133311,1722789152475,-500.0,0.00023917,9]
[334133312,1722789152490,-500.0,0.00023917,9]
[334133313,1722789152504,-500.0,0.00023917,9]
[334133314,1722789152520,-6008.74,0.00023917,9]
[334133315,1722789152534,-500.0,0.00023917,9]
[334133316,1722789152549,-500.0,0.00023917,9]
[334133317,1722789152564,-500.0,0.00023917,9]
[334133318,1722789152578,-2039.61,0.00023917,9]
[334133319,1722789152593,-500.0,0.00023917,9]
[334133320,1722789152607,-500.0,0.00023917,9]
[334133321,1722789152623,-3717.54,0.00023917,9]
[334133322,1722789152638,-500.0,0.00023917,9]
[334133323,1722789152652,-884.84,0.00023917,9]
[334133324,1722789152668,-379.41,0.00023917,9]
[334133325,1722789153042,-500.0,0.00023917,9]
[334133326,1722789153072,-500.0,0.00023917,9]
[334133327,1722789153083,-580.87,0.00023917,9]
[334133328,1722789153094,-621.83,0.00023917,9]
[334133329,1722789153104,-3092.5,0.00023917,9]
[334133330,1722789153115,-1380.41,0.00023917,9]
[334133331,1722789153126,-500.0,0.00023917,9]
[334133332,1722789153136,-1525.48,0.00023917,9]
[334133333,1722789153147,-735.29,0.00023917,9]
[334133334,1722789153157,-500.0,0.00023917,9]
[334133335,1722789153168,-1651.73,0.00023917,9]
[334133336,1722789153181,-1424.91,0.00023917,9]
[334133337,1722789153192,-511.18,0.00023917,9]
[334133338,1722789153203,-9291.65,0.00023917,9]
[334133339,1722789153221,-500.0,0.00023917,9]
[334133340,1722789153232,-668.08,0.00023917,9]
[334133341,1722789153242,-1800.64,0.00023917,9]
[334133342,1722789153252,-1076.82,0.00023917,9]
[334133343,1722789153263,-1604.95,0.00023917,9]
[334133344,1722789153275,-696.11,0.00023917,9]
[334133345,1722789153286,-840.83,0.00023917,9]
[334133346,1722789153296,-734.28,0.00023917,9]
[334133347,1722789153306,-500.0,0.00023917,9]
[334133348,1722789153316,-500.0,0.00023917,9]
[334133349,1722789153325,-500.0,0.00023917,9]
[334133350,1722789153335,-580.56,0.00023917,9]
[334133351,1722789153346,-1654.23,0.00023917,9]
[334133352,1722789153356,-728.39,0.00023917,9]
[334133353,1722789153367,-932.72,0.00023917,9]
[334133354,1722789153378,-716.95,0.00023917,9]
[334133355,1722789153388,-652.16,0.00023917,9]
[334133356,1722789153398,-509.23,0.00023917,9]
[334133357,1722789153408,-500.0,0.00023917,9]
[334133358,1722789153418,-1421.84,0.00023917,9]
[334133359,1722789153428,-1831.37,0.00023917,9]
[334133360,1722789153438,-9159.33,0.00023917,9]
[334133361,1722789153448,-500.0,0.00023917,9]
[334133362,1722789153464,-24340.79,0.00023917,9]
[334133363,1722789153475,-500.0,0.00023917,9]
[334133364,1722789153485,-500.0,0.00023917,9]
[334133365,1722789153496,-500.0,0.00023917,9]
[334133366,1722789153505,-500.0,0.00023917,9]
[334133367,1722789153515,-696.26,0.00023917,9]
[334133368,1722789153525,-2392.07,0.00023917,9]
[334133369,1722789153535,-6117.15,0.00023917,9]
[334133370,1722789153546,-1134.1,0.00023917,9]
[334133371,1722789153557,-2627.33,0.00023917,9]
[334133372,1722789153567,-871.99,0.00023917,9]
[334133373,1722789153578,-771.73,0.00023917,9]
[334133374,1722789153588,-544.49,0.00023917,9]
[334133375,1722789153599,-562.16,0.00023917,9]
[334133376,1722789153609,-11888.09,0.00023917,9]
[334133377,1722789153619,-791.38,0.00023917,9]
[334133378,1722789153628,-500.0,0.00023917,9]
[334133379,1722789153639,-6002.83,0.00023917,9]
[334133380,1722789153648,-500.0,0.00023917,9]
[334133381,1722789153659,-944.27,0.00023917,9]
[334133382,1722789153669,-1585.57,0.00023917,9]
[334133383,1722789153679,-4038.41,0.00023917,9]
[334133384,1722789153689,-608.31,0.00023917,9]
[334133385,1722789153699,-1194.13,0.00023917,9]
[334133386,1722789153711,-1646.59,0.00023917,9]
[334133387,1722789153725,-949.11,0.00023917,9]
[334133388,1722789153735,-500.0,0.00023917,9]
[334133389,1722789153744,-2124.99,0.00023917,9]
[334133390,1722789153754,-1277.47,0.00023917,9]
[334133391,1722789153764,-2060.41,0.00023917,9]
[334133392,1722789153774,-5462.19,0.00023917,9]
[334133393,1722789153785,-1732.64,0.00023917,9]
[334133394,1722789153794,-1091.18,0.00023917,9]
[334133395,1722789153804,-426.03364368,0.00023917,9]
[334133396,1722789154430,-73.96635632,0.00023917,9]
[334133397,1722789154440,-500.0,0.00023917,9]
[334133398,1722789154451,-17.64450368,0.00023917,9]
[334133399,1722789154469,-522.23783259,0.00023917,9]
[334133400,1722789154482,-4.60766373,0.00023917,9]
[334133401,1722789154492,-317.23,0.00023917,9]
[334133402,1722789154502,-500.0,0.00023917,9]
[334133403,1722789154512,-564.87,0.00023917,9]
[334133404,1722789154522,-3506.88219432,0.00023917,9]
[334133405,1722789154675,-274.68725396,0.00022829,2]
[334133406,1722789154702,-1396.31274604,0.00022829,2]
[334133407,1722789154717,-2288.54,0.00023013,9]
[334133408,1722789154729,-2499.75,0.00023095,9]
[334133409,1722789154739,-2288.54,0.00023095,9]
[334133410,1722789154750,-500.0,0.00023178,9]
[334133411,1722789154760,-2499.75,0.00023178,9]
[334133412,1722789154770,-2288.54,0.00023178,9]
[334133413,1722789154780,-500.0,0.0002326,9]
[334133414,1722789154790,-2499.75,0.0002326,9]
[334133415,1722789154800,-500.0,0.00023342,9]
[334133416,1722789154811,-500.0,0.00023424,9]
[334133417,1722789154820,-11665.34780568,0.00023917,9]
[334133418,1722789154830,-4452.48,0.00023917,9]
[334133419,1722789154839,-851.31,0.00023917,9]
[334133420,1722789154849,-1441.44,0.00023917,9]
[334133421,1722789154859,-2716.36,0.00023917,9]
[334133422,1722789154869,-400.35980875,0.00023917,9]
[334133423,1722789154879,-584.6,0.00023917,9]
[334133424,1722789154889,-1571.23,0.00023917,9]
[334133425,1722789154899,-574.32,0.00023917,9]
[334133426,1722789154909,-500.0,0.00023917,9]
[334133427,1722789154920,-500.0,0.00023917,9]
[334133428,1722789154930,-703.47,0.00023917,9]
[334133429,1722789154941,-1021.22,0.00023917,9]
[334133430,1722789154950,-1535.24,0.00023917,9]
[334133431,1722789154962,-1291.6,0.00023917,9]
[334133432,1722789154978,-763.08,0.00023917,9]
[334133433,1722789154988,-5391.24,0.00023917,9]
[334133434,1722789154999,-1354.84,0.00023917,9]
[334133435,1722789155009,-584.33,0.00023917,9]
[334133436,1722789155018,-500.0,0.00023917,9]
[334133437,1722789155027,-709.22,0.00023917,9]
[334133438,1722789155037,-483.05000009,0.00023917,9]
[334133439,1722789155047,-2713.37,0.00023917,9]
[334133440,1722789155057,-2249.61,0.00023917,9]
[334133441,1722789155068,-3893.64,0.00023917,9]
[334133442,1722789155078,-995.02,0.00023917,9]
[334133443,1722789155089,-500.0,0.00023917,9]
[334133444,1722789155099,-500.0,0.00023917,9]
[334133445,1722789155110,-892.75,0.00023917,9]
[334133446,1722789155121,-605.15,0.00023917,9]
[334133447,1722789155131,-1131.9,0.00023917,9]
[334133448,1722789155141,-2837.07,0.00023917,9]
[334133449,1722789155151,-1059.61,0.00023917,9]
[334133450,1722789155162,-901.69,0.00023917,9]
[334133451,1722789155172,-873.69,0.00023917,9]
[334133452,1722789155188,-500.0,0.00023917,9]
[334133453,1722789155199,-1120.25,0.00023917,9]
[334133454,1722789155211,-1475.32,0.00023917,9]
[334133455,1722789155231,-500.0,0.00023917,9]
[334133456,1722789155242,-6849.94,0.00023917,9]
[334133457,1722789155252,-2285.11,0.00023917,9]
[334133458,1722789155265,-1520.63,0.00023917,9]
[334133459,1722789155276,-645.98,0.00023917,9]
[334133460,1722789155286,-1055.9,0.00023917,9]
[334133461,1722789155296,-500.0,0.00023917,9]
[334133462,1722789155306,-500.0,0.00023917,9]
[334133463,1722789155316,-4923.42,0.00023917,9]
[334133464,1722789155326,-1211.89,0.00023917,9]
[334133465,1722789155336,-1860.21,0.00023917,9]
[334133466,1722789155346,-500.0,0.00023917,9]
[334133467,1722789155355,-2498.66,0.00023917,9]
[334133468,1722789155365,-723.93,0.00023917,9]
[334133469,1722789155375,-2543.95,0.00023917,9]
[334133470,1722789155385,-781.57,0.00023917,9]
[334133471,1722789155394,-1395.06,0.00023917,9]
[334133472,1722789155405,-1321.62,0.00023917,9]
[334133473,1722789155415,-1624.5,0.00023917,9]
[334133474,1722789155425,-1415.76,0.00023917,9]
[334133475,1722789155435,-1413.44,0.00023917,9]
[334133476,1722789155446,-500.0,0.00023917,9]
[334133477,1722789155456,-500.0,0.00023917,9]